[Event "14th Chennai GM Open 2023"]
[Site "Chennai"]
[Date "2023.12.31"]
[Round "1.1"]
[White "Ritesh Maddukuri"]
[Black "Aronyak Ghosh"]
[Result "0-1"]
[ECO "D00"]
[WhiteElo "1504"]
[BlackElo "2545"]
[Annotator "TA"]
[PlyCount "62"]
[EventDate "2023.12.31"]
[EventType "swiss"]
[EventCountry "IND"]
[SourceTitle "playchess.com"]
[Source "ChessBase"]
[SourceQuality "1"]
[TimeControl "5400+30"]

{[%evp 9,61,0,4,12,7,17,7,9,4,-12,0,-76,-52,-141,-139,-177,-177,-296,-283,-361,-352,-488,-486,-487,-480,-474,-465,-657,-658,-638,-644,-693,-604,-692,-695,-636,-687,-669,-689,-717,-693,-911,-866,-1309,-1306,-1298,-1279,-1216,-933,-29991,-29992,-29998,-29999,-29999]} 1. d4 {[%emt 0:00:02]} Nf6 {[%emt 0:00:24]} 2. Nc3 {[%emt 0:00:09]} d5 {[%emt 0:00:16]} 3. Bf4 {[%emt 0:00:08]} Bf5 {[%emt 0:00:42]} 4. e3 {[%emt 0:00:21]} e6 {[%emt 0:00:12]} 5. f3 {[%emt 0:01:37]} Be7 {[%emt 0:06:46]} 6. g4 {[%emt 0:02:50] D00: 1 d4 d5: Unusual lines.} Bg6 {[%emt 0:02:10]} 7. h4 {[%emt 0:00:37] h5 is the strong threat.} h5 {[%emt 0:00:14]} 8. g5 {[%emt 0:00:10] The position is equal.} Nfd7 {[%emt 0:00:04]} 9. Nh3 {[%emt 0:04:55] [#]} c5 $146 {[%emt 0:09:27]} ({Predecessor:} 9... a6 10. Bg3 c5 11. Nf4 Nf8 12. Nce2 Nc6 13. c3 Qb6 14. Nxg6 Nxg6 15. Qb3 Qxb3 16. axb3 cxd4 17. exd4 {0-1 Maldonado Mena,G (2139)-Gomez Pastrana,J (1935) ESP-ch U18 Salobrena 2023 (6)}) 10. Nb5 {[%emt 0:03:06] [#]} (10. Bd3 $1 $11 {remains equal.}) 10... O-O $1 $17 {[%emt 0:00:26]} 11. Bc7 {[%emt 0:07:23]} ({Better is} 11. Nc7 $15 e5 12. Nxa8 cxd4 13. exd4 exf4 14. Nxf4) 11... Qc8 {[%emt 0:00:24]} 12. Nf4 {[%emt 0:00:28] [#]} a6 $1 {[%emt 0:05:24]} 13. Nxg6 {[%emt 0:06:36]} (13. Bxb8 $142 Qxb8 14. Nc3) 13... fxg6 $19 {[%emt 0:00:25]} 14. Bxb8 {[%emt 0:01:25]} Qxb8 {[%emt 0:02:26]} (14... Rxb8 15. Nc3 $17) 15. Nc3 {[%emt 0:14:16]} Qg3+ {[%emt 0:02:36]} 16. Kd2 {[%emt 0:02:12]} cxd4 {[%emt 0:00:12]} ({Stronger than} 16... Qxf3 17. Qxf3 Rxf3 18. Bh3 $11) (16... Rxf3 $2 {too greedy.} 17. Rh3 Qf2+ 18. Qe2 $19) 17. exd4 {[%emt 0:00:37]} Rxf3 {[%emt 0:00:10] ...Qf4+ would be deadly.} ({And not} 17... Qxf3 18. Qxf3 Rxf3 19. Bh3 $11) 18. Qe1 {[%emt 0:19:01]} (18. Be2 $142 Qf4+ 19. Ke1 Qg3+ 20. Kd2 Qf4+ 21. Ke1) 18... Qf4+ {[%emt 0:00:55]} 19. Kd1 {[%emt 0:00:39]} Qxd4+ {[%emt 0:00:13]} 20. Kc1 {[%emt 0:01:01]} Nc5 {[%emt 0:00:35] Threatens to win with ...Re3.} 21. Qd2 {[%emt 0:14:08]} Qe5 {[%emt 0:04:22]} 22. Bg2 {[%emt 0:01:47]} Re3 {[%emt 0:00:12] Strongly threatening ...d4.} 23. Rd1 {[%emt 0:05:22]} Rf8 {[%emt 0:00:23][%cal Ba8f8,Bf8f4,Bf4h4][%mdl 32]} 24. a3 {[%emt 0:02:20]} Rf4 {[%emt 0:00:47]} 25. Bxd5 {[%emt 0:00:57]} Rxh4 {[%emt 0:03:50]} 26. Bg2 {[%emt 0:02:36]} Bxg5 {[%emt 0:00:13] ( -> ...Rxc3)} 27. Kb1 {[%emt 0:01:13]} Rg3 {[%emt 0:01:13]} 28. Qf2 {[%emt 0:00:47]} Rxc3 {[%emt 0:01:52]} 29. bxc3 {[%emt 0:00:49]} Na4 {[%emt 0:00:04] Black mates.} 30. Rd3 {[%emt 0:00:48]} Qb5+ {[%emt 0:00:05]} 31. Ka2 {[%emt 0:00:32]} Qb2# {[%emt 0:00:02] White did not feel at home in the position after the opening. An entertaining game by Aronyak Ghosh.   Weighted Error Value: White=0.90/Black=0.07 (flawless)} 0-1

[Event "14th Chennai GM Open 2023"]
[Site "Chennai"]
[Date "2023.12.31"]
[Round "1.2"]
[White "Srihari L R"]
[Black "Shashveen A K"]
[Result "1-0"]
[ECO "D45"]
[WhiteElo "2467"]
[BlackElo "1500"]
[Annotator "TA"]
[PlyCount "119"]
[EventDate "2023.12.31"]
[EventType "swiss"]
[EventCountry "IND"]
[SourceTitle "playchess.com"]
[Source "ChessBase"]
[SourceQuality "1"]
[TimeControl "5400+30"]

{[%evp 15,118,0,6,0,43,33,27,38,42,41,42,42,41,42,57,51,51,52,54,43,54,47,47,50,54,41,63,62,70,65,90,90,94,94,94,94,94,94,94,94,94,94,94,94,94,94,119,119,123,123,165,146,171,123,123,123,123,123,123,123,123,123,123,123,154,123,123,123,123,123,123,123,123,116,12834,12829,12839,12839,12839,12840,12840,12841,12841,12841,12842,12842,12843,12842,12844,12844,12845,12845,12845,12845,12848,12847,12848,12848,12850,12850,12850,12850,12850,12850,29999]} 1. Nf3 {[%emt 0:00:24]} d5 {[%emt 0:00:20]} 2. c4 {[%emt 0:01:44]} e6 {[%emt 0:01:44]} 3. e3 {[%emt 0:01:02]} Nf6 {[%emt 0:00:42]} 4. Nc3 {[%emt 0:00:06]} c6 {[%emt 0:04:32]} 5. b3 {[%emt 0:04:20]} Bd6 {[%emt 0:05:09]} 6. Bb2 {[%emt 0:00:45]} Qe7 {[%emt 0:00:57]} 7. Qc2 {[%emt 0:02:58]} O-O {[%emt 0:00:57]} 8. d4 {[%emt 0:00:51]} Nbd7 {[%emt 0:01:34]} 9. Be2 {[%emt 0:00:53] D45: Semi-Slav: 5 e3.} e5 {[%emt 0:04:34]} 10. dxe5 {[%emt 0:10:34]} Nxe5 {[%emt 0:00:32]} 11. cxd5 {[%emt 0:01:52] White has an edge.} Nxd5 {[%emt 0:01:33]} 12. Nxd5 {[%emt 0:00:49]} cxd5 {[%emt 0:00:15]} 13. O-O {[%emt 0:01:07][%cal Bh1f1,Bf1d1,Bd1d2,Bd2d4][%mdl 32]} Nxf3+ {[%emt 0:03:31]} 14. Bxf3 {[%emt 0:02:04]} Be6 {[%emt 0:00:13]} 15. Rfd1 {[%emt 0:04:30]} Rfd8 {[%emt 0:02:01]} 16. g3 {[%emt 0:02:01]} (16. Bxd5 $2 {is the wrong capture.} Bxd5 17. Rxd5 Bxh2+ 18. Kxh2 Qh4+ 19. Kg1 Rxd5 $19) 16... Rac8 {[%emt 0:09:00] [#]} 17. Qd3 $146 {[%emt 0:01:36]} (17. Qe2 {simplifies} Bc5 18. Rac1 b6 19. Rd3) ({Predecessor:} 17. Qe2 Bb8 18. Rd2 Rd7 19. Rad1 Rcd8 20. Bg4 f5 21. Bf3 Qf7 22. Bh5 Qe7 23. Rd3 {1-0 Overeem,M (2261)-Braggaar,L (1992) Groningen Harmonie op-C 2007 (3)}) 17... Ba3 {[%emt 0:01:46]} 18. Qd4 {[%emt 0:01:45][%csl Gb2][%cal Rd4g7] [#]} Bxb2 {[%emt 0:04:41]} 19. Qxb2 {[%emt 0:00:11]} h6 {[%emt 0:07:28]} 20. Rd2 {[%emt 0:03:06]} Qb4 {[%emt 0:06:13]} 21. Rad1 {[%emt 0:01:47]} Rd7 {[%emt 0:16:51]} 22. Rd4 {[%emt 0:03:58]} Qc5 {[%emt 0:00:49]} 23. Qd2 {[%emt 0:01:39]} g6 {[%emt 0:13:10]} 24. Bxd5 {[%emt 0:11:31]} Bxd5 {[%emt 0:00:11]} 25. Rxd5 {[%emt 0:05:02]} Rxd5 {[%emt 0:00:10]} 26. Qxd5 {[%emt 0:00:05]} Qxd5 {[%emt 0:00:03]} 27. Rxd5 $16 {[%emt 0:00:08][%mdl 4096] Endgame KR-KR} Rc2 {[%emt 0:00:14]} 28. a4 {[%emt 0:02:23]} Rb2 {[%emt 0:02:09]} 29. Rb5 {[%emt 0:00:53]} b6 {[%emt 0:00:08]} 30. g4 {[%emt 0:00:05]} Kf8 {[%emt 0:00:20]} 31. h4 {[%emt 0:01:51][%cal Bh2h4,Bh4h5][%mdl 32]} Ke7 {[%emt 0:02:53]} 32. Kg2 {[%emt 0:02:36]} f6 {[%emt 0:04:11]} 33. h5 {[%emt 0:07:45]} g5 {[%emt 0:00:58]} 34. a5 {[%emt 0:01:40]} (34. Kg3 $18) 34... bxa5 {[%emt 0:00:35]} 35. Rxa5 {[%emt 0:00:03]} Rxb3 {[%emt 0:00:42]} 36. Rxa7+ {[%emt 0:00:01]} Kf8 {[%emt 0:00:07]} 37. Rh7 {[%emt 0:00:48]} Rb2 {[%emt 0:00:06]} 38. Kg3 {[%emt 0:03:38]} Rb3 {[%emt 0:00:29]} 39. Kf3 {[%emt 0:01:15][%cal Of3e4] aiming for Ke4! White is more active.} Rb4 {[%emt 0:01:31]} 40. Rd7 {[%emt 0:05:24]} Kg8 {[%emt 0:00:54]} 41. Rd4 {[%emt 0:00:17]} Rb2 {[%emt 0:00:07]} 42. Kg3 {[%emt 0:00:06]} Rb3 {[%emt 0:00:20]} 43. Re4 {[%emt 0:00:49]} Kf7 {[%emt 0:01:08]} 44. f4 {[%emt 0:00:17]} f5 $2 {[%emt 0:03:08][%mdl 8192] Loses the game.} 45. gxf5 $18 {[%emt 0:00:07]} Kf6 {[%emt 0:00:06]} 46. Kg4 {[%emt 0:00:18]} gxf4 {[%emt 0:00:10]} 47. Re6+ {[%emt 0:00:09][%mdl 64] [#] Zwischenzug} Kg7 {[%emt 0:00:20]} 48. Kxf4 {[%emt 0:00:04]} Rb1 {[%emt 0:00:05]} 49. e4 {[%emt 0:00:23][%cal Be3e4,Be4e5,Be5e6,Be6e7][%mdl 32]} Rh1 {[%emt 0:00:07]} 50. Rg6+ {[%emt 0:00:45]} Kh7 {[%emt 0:00:02]} 51. Ra6 {[%emt 0:00:28]} Rxh5 {[%emt 0:00:08]} 52. Ra7+ {[%emt 0:00:04]} Kg8 {[%emt 0:00:05]} 53. f6 {[%emt 0:00:09]} Rb5 {[%emt 0:00:10]} 54. e5 {[%emt 0:00:06]} h5 {[%emt 0:00:03]} 55. e6 {[%emt 0:00:08]} Rb4+ {[%emt 0:00:12]} 56. Kg5 {[%emt 0:00:18]} Rg4+ {[%emt 0:00:18]} 57. Kh6 {[%emt 0:00:20][%cal Ra7a8]} Kh8 {[%emt 0:00:24]} 58. Rh7+ {[%emt 0:00:23]} Kg8 {[%emt 0:00:04]} 59. e7 {[%emt 0:00:09][%csl Gh7][%cal Rf6f7]} Re4 {[%emt 0:00:28]} 60. f7# {[%emt 0:00:07] Weighted Error Value: White=0.04 (flawless) /Black=0.20 (precise)} 1-0

[Event "14th Chennai GM Open 2023"]
[Site "Chennai"]
[Date "2023.12.31"]
[Round "1.3"]
[White "Ratnapriya K"]
[Black "Fedorov, Alexei"]
[Result "0-1"]
[ECO "B43"]
[WhiteElo "1491"]
[BlackElo "2454"]
[Annotator "RC"]
[PlyCount "92"]
[EventDate "2023.12.31"]
[EventType "swiss"]
[EventCountry "IND"]
[SourceTitle "playchess.com"]
[Source "ChessBase"]
[SourceQuality "1"]
[TimeControl "5400+30"]

1. e4 {[%emt 0:00:05]} c5 {[%emt 0:00:03]} 2. Nf3 {[%emt 0:00:10]} e6 {[%emt 0:00:12]} 3. d4 {[%emt 0:00:08]} cxd4 {[%emt 0:00:04]} 4. Nxd4 {[%emt 0:00:08]} a6 {[%emt 0:00:03]} 5. Nc3 {[%emt 0:00:56]} b5 {[%emt 0:00:06]} 6. Bd3 {[%emt 0:02:45]} Qb6 {[%emt 0:00:30]} 7. Nb3 {[%emt 0:03:40]} Qc7 {[%emt 0:00:05]} 8. Be3 {[%emt 0:02:29]} Nf6 {[%emt 0:00:36]} 9. a4 {[%emt 0:06:05]} b4 {[%emt 0:00:18]} 10. Nb1 {[%emt 0:05:08]} Bb7 {[%emt 0:00:14]} 11. N1d2 {[%emt 0:01:13]} d5 {[%emt 0:00:14]} 12. Qf3 {[%emt 0:07:29]} Nbd7 {[%emt 0:00:41]} 13. Bd4 {[%emt 0:07:08]} Bd6 {[%emt 0:03:32]} 14. a5 {[%emt 0:17:02]} O-O {[%emt 0:02:57]} 15. h3 {[%emt 0:09:29]} Be5 {[%emt 0:04:10]} 16. Qe3 {[%emt 0:03:23]} dxe4 {[%emt 0:00:29]} 17. Nxe4 {[%emt 0:02:00]} Nd5 {[%emt 0:00:04]} 18. Bxe5 {[%emt 0:06:15]} Qxe5 {[%emt 0:02:47]} 19. Qd4 {[%emt 0:01:52]} Qxd4 {[%emt 0:06:36]} 20. Nxd4 {[%emt 0:00:07]} Nf4 {[%emt 0:00:09]} 21. Rg1 {[%emt 0:09:15]} Ne5 {[%emt 0:00:47]} 22. Kd2 {[%emt 0:04:25]} Rfd8 {[%emt 0:02:31]} 23. Nc5 {[%emt 0:05:53]} Rxd4 {[%emt 0:02:08]} 24. Nxb7 {[%emt 0:00:30]} Nexd3 {[%emt 0:00:10]} 25. cxd3 {[%emt 0:00:30]} Rxd3+ {[%emt 0:00:02]} 26. Ke1 {[%emt 0:02:46]} Rc8 {[%emt 0:00:25]} 27. g3 {[%emt 0:01:26]} Ng6 {[%emt 0:00:09]} 28. Ke2 {[%emt 0:00:43]} Rd7 {[%emt 0:00:05]} 29. Rac1 {[%emt 0:00:10]} Rxc1 {[%emt 0:00:04]} 30. Rxc1 {[%emt 0:00:07]} Rxb7 {[%emt 0:00:01]} 31. Rc8+ {[%emt 0:00:09]} Nf8 {[%emt 0:00:03]} 32. Ra8 {[%emt 0:00:07]} Rc7 {[%emt 0:03:08]} 33. Rxa6 {[%emt 0:00:08]} Rc2+ {[%emt 0:00:03]} 34. Kd3 {[%emt 0:00:20]} Rxb2 {[%emt 0:00:08]} 35. Kc4 {[%emt 0:00:27]} Rxf2 {[%emt 0:01:18]} 36. Kxb4 {[%emt 0:00:07]} f5 {[%emt 0:00:39]} 37. Ra8 {[%emt 0:00:26]} e5 {[%emt 0:01:12]} 38. Re8 {[%emt 0:02:25]} f4 {[%emt 0:01:59]} 39. g4 {[%emt 0:01:18]} Rb2+ {[%emt 0:00:44]} 40. Kc4 {[%emt 0:01:01]} f3 {[%emt 0:01:48]} 41. Rxe5 {[%emt 0:00:15]} f2 {[%emt 0:01:08]} 42. Rf5 {[%emt 0:00:09]} g6 {[%emt 0:00:11]} 43. Rf3 {[%emt 0:01:14]} Nd7 {[%emt 0:00:05]} 44. Rf4 {[%emt 0:00:31]} Ne5+ {[%emt 0:01:01]} 45. Kc3 {[%emt 0:00:22]} Ra2 {[%emt 0:00:24]} 46. a6 {[%emt 0:00:18]} Nf3 {[%emt 0:00:34]} 0-1

[Event "14th Chennai GM Open 2023"]
[Site "Chennai"]
[Date "2023.12.31"]
[Round "1.4"]
[White "Glek, Igor"]
[Black "Pournami S"]
[Result "1-0"]
[ECO "B40"]
[WhiteElo "2429"]
[BlackElo "1489"]
[Annotator "RC"]
[PlyCount "49"]
[EventDate "2023.12.31"]
[EventType "swiss"]
[EventCountry "IND"]
[SourceTitle "playchess.com"]
[Source "ChessBase"]
[SourceQuality "1"]
[TimeControl "5400+30"]

1. e4 {[%emt 0:07:35]} c5 {[%emt 0:00:07]} 2. Nf3 {[%emt 0:00:08]} d6 {[%emt 0:00:04]} 3. c3 {[%emt 0:00:10]} Nf6 {[%emt 0:00:09]} 4. Bd3 {[%emt 0:00:15]} e6 {[%emt 0:00:08]} 5. Bc2 {[%emt 0:00:05]} Be7 {[%emt 0:00:06]} 6. O-O {[%emt 0:00:05]} Nc6 {[%emt 0:00:22]} 7. Re1 {[%emt 0:00:10]} O-O {[%emt 0:00:07]} 8. d4 {[%emt 0:00:03]} b5 {[%emt 0:03:02]} 9. dxc5 {[%emt 0:02:38]} dxc5 {[%emt 0:00:13]} 10. Qe2 {[%emt 0:00:14]} Qb6 {[%emt 0:07:22]} 11. e5 {[%emt 0:01:19]} Nd5 {[%emt 0:06:20]} 12. Qe4 {[%emt 0:00:55]} g6 {[%emt 0:01:03]} 13. Bg5 {[%emt 0:03:02]} Bxg5 {[%emt 0:10:41]} 14. Nxg5 {[%emt 0:00:02]} Kg7 {[%emt 0:01:42]} 15. Nd2 {[%emt 0:01:30]} Bb7 {[%emt 0:03:00]} 16. Ndf3 {[%emt 0:01:15]} Nce7 {[%emt 0:18:25]} 17. Qg4 {[%emt 0:01:25]} h6 {[%emt 0:08:57]} 18. Ne4 {[%emt 0:00:48]} Nf5 {[%emt 0:01:58]} 19. h4 {[%emt 0:00:28]} h5 {[%emt 0:00:52]} 20. Qg5 {[%emt 0:00:07]} Rac8 {[%emt 0:03:18]} 21. Nf6 {[%emt 0:00:26]} Nxf6 {[%emt 0:00:50]} 22. exf6+ {[%emt 0:01:14]} Kh7 {[%emt 0:01:48]} 23. Ne5 {[%emt 0:00:10]} Rcd8 {[%emt 0:03:15]} 24. Bxf5 {[%emt 0:03:08]} exf5 {[%emt 0:00:32]} 25. Nxg6 {[%emt 0:00:07]} 1-0

[Event "14th Chennai GM Open 2023"]
[Site "Chennai"]
[Date "2023.12.31"]
[Round "1.5"]
[White "Sanchith Sundararam K"]
[Black "Ajay Karthikeyan"]
[Result "0-1"]
[ECO "B01"]
[WhiteElo "1485"]
[BlackElo "2423"]
[Annotator "RC"]
[PlyCount "88"]
[EventDate "2023.12.31"]
[EventType "swiss"]
[EventCountry "IND"]
[SourceTitle "playchess.com"]
[Source "ChessBase"]
[SourceQuality "1"]
[TimeControl "5400+30"]

1. e4 {[%emt 0:00:06]} d5 {[%emt 0:00:06]} 2. exd5 {[%emt 0:00:17]} Nf6 {[%emt 0:00:06]} 3. d4 {[%emt 0:03:23]} Qxd5 {[%emt 0:01:57]} 4. Nc3 {[%emt 0:02:14]} Qa5 {[%emt 0:00:13]} 5. Nf3 {[%emt 0:00:35]} Bf5 {[%emt 0:00:20]} 6. Bd3 {[%emt 0:01:05]} Bxd3 {[%emt 0:00:29]} 7. Qxd3 {[%emt 0:00:26]} e6 {[%emt 0:00:02]} 8. Bd2 {[%emt 0:12:47]} Bb4 {[%emt 0:02:30]} 9. Qb5+ {[%emt 0:07:39]} c6 {[%emt 0:00:14]} 10. Qxb7 {[%emt 0:18:01]} O-O {[%emt 0:00:08]} 11. Ne5 {[%emt 0:16:30]} Na6 {[%emt 0:06:26]} 12. Nc4 {[%emt 0:06:40]} Qd8 {[%emt 0:02:09]} 13. Qxa6 {[%emt 0:02:14]} Qxd4 {[%emt 0:00:03]} 14. Ne3 {[%emt 0:01:59]} Rab8 {[%emt 0:00:32]} 15. Qd3 {[%emt 0:03:31]} Qh4 {[%emt 0:00:57]} 16. O-O {[%emt 0:02:21]} Rfd8 {[%emt 0:00:33]} 17. Qe2 {[%emt 0:00:27]} Bd6 {[%emt 0:01:22]} 18. g3 {[%emt 0:08:32]} Qh3 {[%emt 0:00:03]} 19. Rfd1 {[%emt 0:04:19]} Bc5 {[%emt 0:05:54]} 20. Qf1 {[%emt 0:01:54]} Qh5 {[%emt 0:00:02]} 21. Qe2 {[%emt 0:00:11]} Qh3 {[%emt 0:00:12]} 22. Be1 {[%emt 0:01:54]} Bd4 {[%emt 0:01:16]} 23. Qf1 {[%emt 0:02:18]} Qh6 {[%emt 0:01:34]} 24. Qe2 {[%emt 0:01:43]} Qg6 {[%emt 0:01:28]} 25. Rd3 {[%emt 0:00:55]} c5 {[%emt 0:01:36]} 26. Rad1 {[%emt 0:00:46]} e5 {[%emt 0:00:40]} 27. R3d2 {[%emt 0:00:36]} h5 {[%emt 0:01:43]} 28. Ng2 {[%emt 0:00:25]} Rxb2 {[%emt 0:00:39]} 29. Nb5 {[%emt 0:00:36]} Rb8 {[%emt 0:00:38]} 30. Nxd4 {[%emt 0:00:13]} exd4 {[%emt 0:00:02]} 31. Nf4 {[%emt 0:00:41]} Qf5 {[%emt 0:00:14]} 32. Qd3 {[%emt 0:00:25]} Qg4 {[%emt 0:00:57]} 33. c3 {[%emt 0:00:38]} dxc3 {[%emt 0:00:31]} 34. Qxc3 {[%emt 0:00:24]} Rxd2 {[%emt 0:00:31]} 35. Rxd2 {[%emt 0:00:35]} Re8 {[%emt 0:00:25]} 36. Rb2 {[%emt 0:00:33]} Qd1 {[%emt 0:01:26]} 37. Ng2 {[%emt 0:00:23]} h4 {[%emt 0:00:23]} 38. Ne3 {[%emt 0:00:39]} Qf3 {[%emt 0:00:42]} 39. Ng2 {[%emt 0:00:13]} Qe4 {[%emt 0:00:25]} 40. gxh4 {[%emt 0:00:49]} c4 {[%emt 0:02:44]} 41. Qg3 {[%emt 0:00:29]} Kh7 {[%emt 0:01:30]} 42. Ne3 {[%emt 0:00:30]} Re6 {[%emt 0:00:27]} 43. Qh3 {[%emt 0:00:28]} Nd5 {[%emt 0:00:49]} 44. Kf1 {[%emt 0:00:32]} Qh1+ {[%emt 0:00:09]} 0-1

[Event "14th Chennai GM Open 2023"]
[Site "Chennai"]
[Date "2023.12.31"]
[Round "1.6"]
[White "Viani Antonio Dcunha"]
[Black "Rachishnu Datta"]
[Result "1-0"]
[ECO "D31"]
[WhiteElo "2407"]
[BlackElo "1485"]
[Annotator "RC"]
[PlyCount "77"]
[EventDate "2023.12.31"]
[EventType "swiss"]
[EventCountry "IND"]
[SourceTitle "playchess.com"]
[Source "ChessBase"]
[SourceQuality "1"]
[TimeControl "5400+30"]

1. d4 {[%emt 0:00:03]} d5 {[%emt 0:00:12]} 2. c4 {[%emt 0:00:09]} e6 {[%emt 0:00:07]} 3. Nf3 {[%emt 0:00:11]} c6 {[%emt 0:00:04]} 4. Nc3 {[%emt 0:00:22]} Bd6 {[%emt 0:00:08]} 5. e4 {[%emt 0:00:13]} dxe4 {[%emt 0:02:03]} 6. Nxe4 {[%emt 0:00:06]} Bb4+ {[%emt 0:00:55]} 7. Bd2 {[%emt 0:00:20]} Bxd2+ {[%emt 0:00:38]} 8. Qxd2 {[%emt 0:00:08]} Nf6 {[%emt 0:01:48]} 9. Bd3 {[%emt 0:00:21]} Nxe4 {[%emt 0:06:28]} 10. Bxe4 {[%emt 0:00:08]} Nd7 {[%emt 0:09:03]} 11. O-O {[%emt 0:00:26]} O-O {[%emt 0:00:47]} 12. Rad1 {[%emt 0:01:16]} a5 {[%emt 0:06:05]} 13. Rfe1 {[%emt 0:02:39]} Nf6 {[%emt 0:09:47]} 14. Bc2 {[%emt 0:01:28]} b5 {[%emt 0:03:18]} 15. c5 {[%emt 0:00:32]} Qd5 {[%emt 0:07:54]} 16. Bb3 {[%emt 0:01:31]} Qd8 {[%emt 0:01:47]} 17. Ne5 {[%emt 0:01:29]} Bb7 {[%emt 0:00:07]} 18. Re3 {[%emt 0:00:42]} Nd7 {[%emt 0:03:28]} 19. Qe2 {[%emt 0:05:06]} Nxe5 {[%emt 0:09:48]} 20. dxe5 {[%emt 0:00:12]} Qe7 {[%emt 0:01:46]} 21. Rd6 {[%emt 0:00:26]} Rfd8 {[%emt 0:00:43]} 22. Bc2 {[%emt 0:08:47]} Qg5 {[%emt 0:07:57]} 23. h4 {[%emt 0:05:46]} Qe7 {[%emt 0:03:40]} 24. Qh5 {[%emt 0:02:39]} g6 {[%emt 0:01:23]} 25. Qh6 {[%emt 0:00:20]} Rxd6 {[%emt 0:01:02]} 26. cxd6 {[%emt 0:02:45]} Qf8 {[%emt 0:00:10]} 27. Qg5 {[%emt 0:00:43]} Qd8 {[%emt 0:01:33]} 28. Qf4 {[%emt 0:02:12]} c5 {[%emt 0:02:02]} 29. h5 {[%emt 0:01:46]} Bd5 {[%emt 0:01:32]} 30. Rh3 {[%emt 0:08:58]} Qf8 {[%emt 0:03:47]} 31. Qh4 {[%emt 0:01:15]} Qg7 {[%emt 0:02:30]} 32. f4 {[%emt 0:02:28]} Ra7 {[%emt 0:01:12]} 33. hxg6 {[%emt 0:04:35]} fxg6 {[%emt 0:01:34]} 34. Bxg6 {[%emt 0:03:21]} hxg6 {[%emt 0:01:55]} 35. Qd8+ {[%emt 0:00:53]} Kf7 {[%emt 0:00:33]} 36. d7 {[%emt 0:00:38]} Ra8 {[%emt 0:03:24]} 37. Qxa8 {[%emt 0:00:11]} Bxa8 {[%emt 0:00:03]} 38. d8=Q {[%emt 0:00:09]} Bd5 {[%emt 0:00:50]} 39. Rh8 {[%emt 0:00:10]} 1-0

[Event "14th Chennai GM Open 2023"]
[Site "Chennai"]
[Date "2023.12.31"]
[Round "1.7"]
[White "Tanish Ragavan S"]
[Black "Nitin, S.."]
[Result "0-1"]
[ECO "B08"]
[WhiteElo "1484"]
[BlackElo "2385"]
[Annotator "RC"]
[PlyCount "76"]
[EventDate "2023.12.31"]
[EventType "swiss"]
[EventCountry "IND"]
[SourceTitle "playchess.com"]
[Source "ChessBase"]
[SourceQuality "1"]
[TimeControl "5400+30"]

1. e4 {[%emt 0:00:35]} g6 {[%emt 0:00:59]} 2. d4 {[%emt 0:01:05]} Bg7 {[%emt 0:00:15]} 3. Nf3 {[%emt 0:00:28]} d6 {[%emt 0:00:35]} 4. Bc4 {[%emt 0:01:05]} c6 {[%emt 0:00:42]} 5. Nc3 {[%emt 0:02:19]} Nf6 {[%emt 0:00:19]} 6. O-O {[%emt 0:01:12]} b5 {[%emt 0:00:36]} 7. Bd3 {[%emt 0:00:38]} O-O {[%emt 0:04:58]} 8. h3 {[%emt 0:00:18]} Qc7 {[%emt 0:04:05]} 9. Bf4 {[%emt 0:02:48]} Nh5 {[%emt 0:00:15]} 10. Bh2 {[%emt 0:01:25]} e5 {[%emt 0:00:09]} 11. d5 {[%emt 0:01:23]} b4 {[%emt 0:00:08]} 12. Ne2 {[%emt 0:01:40]} cxd5 {[%emt 0:00:12]} 13. exd5 {[%emt 0:01:14]} Bb7 {[%emt 0:00:20]} 14. c4 {[%emt 0:01:59]} Nd7 {[%emt 0:00:56]} 15. a3 {[%emt 0:04:21]} a5 {[%emt 0:00:49]} 16. Nd2 {[%emt 0:09:44]} f5 {[%emt 0:01:14]} 17. f3 {[%emt 0:03:29]} Rae8 {[%emt 0:02:50]} 18. axb4 {[%emt 0:03:24]} axb4 {[%emt 0:00:08]} 19. Kh1 {[%emt 0:00:27]} Nhf6 {[%emt 0:01:28]} 20. Nb3 {[%emt 0:01:56]} Ra8 {[%emt 0:01:23]} 21. Rc1 {[%emt 0:01:20]} Nc5 {[%emt 0:16:33]} 22. Nxc5 {[%emt 0:01:53]} dxc5 {[%emt 0:02:17]} 23. d6 {[%emt 0:03:48]} Qxd6 {[%emt 0:01:11]} 24. Bxf5 {[%emt 0:00:28]} Qc6 {[%emt 0:00:45]} 25. Bd3 {[%emt 0:01:59]} e4 {[%emt 0:01:01]} 26. fxe4 {[%emt 0:02:44]} Nxe4 {[%emt 0:00:09]} 27. Qe1 {[%emt 0:04:35]} Bxb2 {[%emt 0:05:38]} 28. Nf4 {[%emt 0:03:43]} Bxc1 {[%emt 0:02:12]} 29. Nd5 {[%emt 0:00:15]} Rxf1+ {[%emt 0:01:46]} 30. Qxf1 {[%emt 0:00:57]} Bg5 {[%emt 0:01:03]} 31. Bxe4 {[%emt 0:01:29]} Qe6 {[%emt 0:00:37]} 32. Bf3 {[%emt 0:05:33]} Rf8 {[%emt 0:05:53]} 33. Qa1 {[%emt 0:04:54]} Rxf3 {[%emt 0:01:04]} 34. gxf3 {[%emt 0:00:55]} Bxd5 {[%emt 0:00:09]} 35. cxd5 {[%emt 0:00:34]} Qxd5 {[%emt 0:00:07]} 36. Kg2 {[%emt 0:00:03]} Qd2+ {[%emt 0:00:22]} 37. Kg3 {[%emt 0:05:50]} Bf4+ {[%emt 0:03:14]} 38. Kh4 {[%emt 0:00:05]} Qd8+ {[%emt 0:00:30]} 0-1

[Event "14th Chennai GM Open 2023"]
[Site "Chennai"]
[Date "2023.12.31"]
[Round "1.8"]
[White "Tologon tegin, Semetei"]
[Black "Shyam Ganesh R"]
[Result "1-0"]
[ECO "D05"]
[WhiteElo "2384"]
[BlackElo "1480"]
[Annotator "RC"]
[PlyCount "53"]
[EventDate "2023.12.31"]
[EventType "swiss"]
[EventCountry "IND"]
[SourceTitle "playchess.com"]
[Source "ChessBase"]
[SourceQuality "1"]
[TimeControl "5400+30"]

1. Nf3 {[%emt 0:00:02]} Nf6 {[%emt 0:00:16]} 2. e3 {[%emt 0:00:04]} b6 {[%emt 0:02:12]} 3. d4 {[%emt 0:00:33]} Bb7 {[%emt 0:00:35]} 4. Bd3 {[%emt 0:00:19]} e6 {[%emt 0:01:07]} 5. O-O {[%emt 0:00:47]} d5 {[%emt 0:01:38]} 6. b3 {[%emt 0:00:49]} Bd6 {[%emt 0:01:34]} 7. Bb2 {[%emt 0:00:11]} O-O {[%emt 0:01:31]} 8. Nbd2 {[%emt 0:01:20]} Nbd7 {[%emt 0:09:05]} 9. Ne5 {[%emt 0:00:24]} h6 {[%emt 0:05:00]} 10. f4 {[%emt 0:06:53]} c5 {[%emt 0:06:59]} 11. Qe2 {[%emt 0:07:14]} Ne4 {[%emt 0:07:14]} 12. Nxe4 {[%emt 0:01:03]} dxe4 {[%emt 0:00:07]} 13. Bc4 {[%emt 0:00:39]} cxd4 {[%emt 0:06:39]} 14. Nxd7 {[%emt 0:06:08]} Qxd7 {[%emt 0:00:14]} 15. Bxd4 {[%emt 0:00:08]} f5 {[%emt 0:04:57]} 16. Rad1 {[%emt 0:01:18]} Qe7 {[%emt 0:01:15]} 17. g4 {[%emt 0:16:55]} Kh7 {[%emt 0:14:52]} 18. Kh1 {[%emt 0:05:15]} fxg4 {[%emt 0:05:45]} 19. Qxg4 {[%emt 0:00:36]} e5 {[%emt 0:01:43]} 20. Bb2 {[%emt 0:20:37]} Rad8 {[%emt 0:07:26]} 21. Rg1 {[%emt 0:01:58]} Qf6 {[%emt 0:04:58]} 22. Rxd6 {[%emt 0:01:46]} Rxd6 {[%emt 0:01:31]} 23. Bxe5 {[%emt 0:00:08]} Bc8 {[%emt 0:02:12]} 24. Qxg7+ {[%emt 0:00:46]} Qxg7 {[%emt 0:00:07]} 25. Rxg7+ {[%emt 0:00:03]} Kh8 {[%emt 0:00:06]} 26. Rf7+ {[%emt 0:01:41]} Kg8 {[%emt 0:02:41]} 27. Rd7+ {[%emt 0:00:13]} 1-0